bitfinex-derivatives/quotes_ETHF0:USTF0_20251009
["timestamp","ask_amount","ask_price","bid_price","bid_amount"]
[1760000314745,1.2766,4327.6,4326.9,1.3603]
[1760000314936,1.27835291,4327.6,4327.0,0.4159]
[1760000315142,0.41588,4327.3,4327.2,1.3603]
[1760000315444,0.41586,4327.5,4327.0,0.4393]
[1760000315641,0.00175291,4327.6,4327.1,1.3603]
[1760000315945,0.00175291,4327.6,4327.5,1.8832]
[1760000316147,0.00175291,4327.6,4327.5,2.29906]
[1760000316944,0.00175291,4327.6,4327.5,1.8832]
[1760000317147,0.00175291,4327.6,4327.5,2.1162]
[1760000317651,0.00175291,4327.6,4327.5,1.3603]
[1760000318845,0.41589,4327.2,4327.0,1.3603]
[1760000319053,0.4159,4327.1,4326.9,0.233]
[1760000319251,0.4159,4327.1,4327.0,1.3603]
[1760000319552,0.4159,4327.1,4327.0,42.1603]
[1760000319748,1.27835291,4327.6,4327.0,42.1603]
[1760000320050,0.41589,4327.2,4327.1,1.3603]
[1760000321749,0.41586,4327.5,4327.2,0.41588]
[1760000321946,1.27835291,4327.6,4327.2,0.41588]
[1760000322144,0.41587,4327.4,4327.2,0.41588]
[1760000322340,0.00175291,4327.6,4327.5,1.7996]
[1760000324045,1.19632,4328.9,4327.5,1.7996]
[1760000324046,1.2735,4328.9,4327.8,1.03957]
[1760000324248,0.41572,4329.0,4328.8,0.41573]
[1760000324445,1.2735,4329.4,4328.6,0.233]
[1760000324651,0.4157,4329.2,4329.1,1.345]
[1760000324951,0.00224508,4329.2,4329.0,0.41571]
[1760000325148,1.68912,4330.0,4329.1,1.345]
[1760000325347,1.2735,4330.7,4329.9,1.345]
[1760000325544,0.41556,4330.6,4329.9,1.345]
[1760000325751,0.41556,4330.6,4329.5,0.4393]
[1760000325752,0.5395,4331.0,4330.3,0.41558]
[1760000326053,0.41554,4330.8,4330.4,0.41557]
[1760000326254,0.00275574,4330.8,4330.5,0.41556]
[1760000326555,0.00275574,4330.8,4330.7,1.345]
[1760000328551,0.00275574,4330.8,4330.7,6.345]
[1760000328950,0.00275574,4330.8,4330.7,42.145]
[1760000329250,0.00275574,4330.8,4330.7,42.378]
[1760000329957,0.00275574,4330.8,4330.7,42.377]
[1760000331450,0.00275574,4330.8,4330.7,47.145]
[1760000331653,0.00275574,4330.8,4330.7,47.377]
[1760000331846,1.2735,4332.3,4331.4,0.41548]
[1760000332053,0.41546,4331.7,4331.4,0.41548]
[1760000332558,0.41544,4331.9,4331.5,0.41547]
[1760000332861,1.68895,4331.7,4331.6,1.345]
[1760000333356,1.2735,4331.7,4330.7,40.8]
[1760000333547,1.2735,4331.4,4330.8,1.345]
[1760000333752,0.41552,4331.0,4330.8,1.345]
[1760000333949,1.68904,4330.8,4330.7,40.8]
[1760000334555,1.68904,4330.8,4330.7,1.345]
[1760000335659,1.68904,4330.8,4330.6,0.232]
[1760000335857,1.68904,4330.8,4330.6,1.577]
[1760000336563,1.68904,4330.8,4330.7,1.345]
[1760000337258,0.41554,4330.8,4330.7,1.345]
[1760000337659,2.31217,4331.6,4330.6,0.232]
[1760000337860,1.03871,4331.4,4330.7,1.345]
[1760000338057,0.41554,4330.8,4330.7,1.345]
[1760000338360,0.41554,4330.8,4330.6,0.232]
[1760000338361,1.3237,4330.7,4330.6,0.232]
[1760000338555,0.41554,4330.8,4330.6,0.232]
[1760000338763,0.41554,4330.8,4330.7,1.3608]
[1760000339555,0.41553,4330.9,4330.7,1.3608]
[1760000339755,0.41553,4330.9,4330.6,0.64756]
[1760000340065,0.41554,4330.8,4330.7,1.3608]
[1760000340261,1.3237,4331.2,4330.7,1.3608]
[1760000340562,1.57809,4332.0,4331.0,0.4393]
[1760000340770,1.57809,4332.0,4330.5,0.4433]
[1760000340771,0.41549,4331.3,4331.1,1.5928]
[1760000340957,1.03863,4331.8,4330.5,0.4433]
[1760000340958,1.3237,4331.1,4330.8,1.5928]
[1760000341164,0.41553,4330.9,4330.8,0.232]
[1760000341363,0.41556,4330.6,4330.4,40.80287965]
[1760000341565,1.73926,4330.6,4330.5,0.232]
[1760000341765,1.73926,4330.6,4330.4,0.00287965]
[1760000341766,1.8477,4330.5,4330.4,0.00287965]
[1760000341970,0.41568,4329.4,4328.5,0.4393]
[1760000342270,1.3237,4330.4,4329.5,0.4898]
[1760000342461,0.41565,4329.7,4329.6,1.3608]
[1760000342663,1.73935,4329.7,4329.6,1.3608]
[1760000342960,0.41565,4329.7,4329.6,1.36363758]
[1760000343660,1.73935,4329.7,4329.6,0.00283758]
[1760000344567,1.73935,4329.7,4329.6,1.36363758]
[1760000344766,1.73935,4329.7,4329.6,0.00283758]
[1760000346866,1.3237,4330.3,4329.7,1.3608]
[1760000347261,0.41564,4329.8,4329.7,1.3608]
[1760000347969,1.73934,4329.8,4329.7,1.3608]
[1760000348761,1.3237,4330.2,4329.7,1.3608]
[1760000348964,1.3237,4330.2,4329.8,1.3608]
[1760000348965,0.41562,4330.0,4329.8,1.3608]
[1760000349273,1.3237,4330.8,4330.2,1.3608]
[1760000349564,0.41563,4329.9,4329.6,0.00283758]
[1760000349769,0.41563,4329.9,4329.7,1.77644]
[1760000349959,0.41558,4330.4,4330.2,0.41559]
[1760000350163,0.41558,4330.4,4330.3,1.3608]
[1760000350768,0.41563,4329.9,4329.6,40.80283758]
[1760000350969,1.3237,4329.9,4329.6,0.00283758]
[1760000351166,1.73935,4329.7,4329.6,0.00283758]
[1760000354067,6.73935,4329.7,4329.6,0.00283758]
[1760000354275,6.73935,4329.7,4327.5,0.4433]
[1760000354276,1.73946,4328.5,4328.4,1.3608]
[1760000354472,1.03938,4328.7,4328.2,1.3608]
[1760000354683,1.7395,4328.1,4328.0,40.8]
[1760000355074,1.3237,4328.2,4327.6,1.3608]
[1760000355273,0.41583,4327.8,4327.6,0.00178082]
[1760000355571,0.41583,4327.8,4327.7,1.3608]
[1760000356274,0.00216805,4328.2,4328.1,1.3608]
[1760000356479,0.00216805,4328.2,4328.1,42.1608]
[1760000358779,1.3237,4329.2,4328.1,40.8]
[1760000358981,1.3237,4329.2,4328.2,1.3608]
[1760000359386,0.41576,4328.6,4328.5,1.3608]
[1760000359783,0.4179776,4328.6,4328.5,1.3608]
[1760000363484,0.0022176,4328.6,4328.5,1.8001]
[1760000364588,0.0022176,4328.6,4328.5,2.21586]
[1760000365783,0.0022176,4328.6,4328.5,1.8001]
[1760000365984,0.0022176,4328.6,4328.5,2.21586]
[1760000368690,0.0022176,4328.6,4328.5,3.92406]
[1760000370385,0.60039,4329.2,4329.1,2.988]
[1760000370591,0.60039,4329.2,4329.1,3.22]
[1760000370792,0.41569,4329.2,4329.1,3.6357]
[1760000370982,0.41567,4329.5,4329.2,1.7597]
[1760000371183,0.41562,4330.0,4329.9,2.0797]
[1760000371384,2.4749929,4330.0,4329.9,2.988]
[1760000372987,3.5752329,4330.0,4329.6,1.2283]
[1760000373193,2.47329,4329.2,4329.1,0.9083]
[1760000374690,3.29929,4329.2,4329.1,0.9083]
[1760000375394,3.29929,4329.2,4329.1,1.7597]
[1760000375593,3.29929,4329.2,4329.1,0.9083]
[1760000375791,3.29932,4328.9,4328.8,0.232]
[1760000375985,0.41577,4328.4,4328.3,2.55238]
[1760000376189,0.41577,4328.4,4328.3,3.63578]
[1760000377089,0.41574,4328.7,4328.4,0.41577]
[1760000377291,1.63932,4328.9,4328.8,1.7597]
[1760000377485,1.63932,4328.9,4328.8,2.988]
[1760000377688,0.41572,4328.9,4328.8,2.988]
[1760000381200,0.41572,4328.9,4328.8,3.22]
[1760000384604,0.41572,4328.9,4328.8,3.1294]
[1760000387704,1.66172,4328.9,4328.8,3.1294]
[1760000388308,0.41572,4328.9,4328.8,3.1294]
[1760000389301,1.4307,4329.7,4329.4,1.697]
[1760000389504,1.4307,4329.7,4329.5,2.8974]
[1760000389505,1.28325,4329.6,4329.5,2.8974]
[1760000389696,3.41235,4329.6,4329.5,1.697]
[1760000390109,1.66169,4329.2,4329.1,40.8]
[1760000390305,0.41571,4329.0,4328.9,0.232]
[1760000390600,1.28331,4329.0,4328.9,3.1294]
[1760000391004,2.52931,4329.0,4328.9,3.1294]
[1760000391200,0.41571,4329.0,4328.9,3.54512]
[1760000391404,0.41571,4329.0,4328.9,3.1294]
[1760000392706,0.41571,4329.0,4328.9,3.54512]
[1760000393407,0.41571,4329.0,4328.9,3.1294]
[1760000393607,0.1847,4329.4,4328.9,1.929]
[1760000393802,0.1847,4329.4,4329.3,1.697]
[1760000394003,0.1847,4329.4,4329.3,2.8974]
[1760000394198,0.60037,4329.4,4329.3,2.8974]
[1760000394700,0.41566,4329.5,4329.3,3.31308]
[1760000394909,0.41563,4329.9,4329.8,2.8974]
[1760000395204,2.52923,4329.9,4329.8,2.8974]
[1760000395402,1.28323,4329.9,4329.8,2.8974]
[1760000395600,0.41563,4329.9,4329.8,3.54504]
[1760000395803,0.41563,4329.9,4329.8,3.1294]
[1760000396703,0.41563,4329.9,4329.8,3.54504]
[1760000397207,0.41563,4329.9,4329.8,3.1294]
[1760000400205,1.22371,4330.2,4329.8,3.1294]
[1760000400206,0.1847,4330.2,4329.9,2.9079]
[1760000400405,0.41553,4330.9,4330.8,2.9079]
[1760000400612,0.41553,4330.9,4330.8,1.8736]
[1760000400818,0.41553,4330.9,4330.0,0.4882]
[1760000400819,1.03886,4330.8,4330.2,40.8]
[1760000401007,1.68689,4330.3,4330.2,40.8]
[1760000401209,1.68689,4330.3,4330.2,42.2983]
[1760000401407,1.68892968,4330.3,4330.2,3.14276325]
[1760000401604,2.54692968,4330.3,4330.2,3.14276325]
[1760000401805,3.34362968,4330.3,4330.2,0.80726325]
[1760000402113,3.34362968,4330.3,4330.2,0.00286325]
[1760000402315,8.34362968,4330.3,4330.2,0.00286325]
[1760000402512,3.34362968,4330.3,4330.2,0.00286325]
[1760000402811,0.41568,4329.3,4329.2,2.9079]
[1760000403012,3.34168,4329.3,4329.2,1.6416]
[1760000403808,3.34168,4329.3,4329.2,1.64447213]
[1760000404316,3.34168,4329.3,4329.2,2.91077213]
[1760000404718,3.34168,4329.3,4329.2,0.00287213]
[1760000405117,2.1293,4329.9,4329.8,0.8372]
[1760000405417,2.926,4329.3,4329.2,0.00287213]
[1760000405809,7.926,4329.3,4329.2,0.00287213]
[1760000406014,2.1293,4327.9,4327.8,2.0707]
[1760000406216,2.1293,4327.9,4327.8,2.9079]
[1760000407015,2.1293,4327.9,4327.8,2.9101875]
[1760000407415,2.926,4327.9,4327.8,1.6438875]
[1760000407817,2.926,4327.9,4327.8,3.3260175]
[1760000408016,0.232,4328.3,4327.8,3.3260175]
[1760000408017,3.57378,4328.3,4328.2,0.8044]
[1760000408318,2.926,4327.9,4327.8,0.8066875]
[1760000409618,3.82836,4328.5,4328.4,1.6416]
[1760000409811,3.82836,4328.5,4328.4,0.8044]
[1760000410010,0.41581,4328.0,4327.9,2.9079]
[1760000410410,0.4866,4329.0,4328.5,1.2663]
[1760000410615,1.27371,4329.0,4328.9,2.9079]
[1760000411122,3.34171,4329.0,4328.9,1.6416]
[1760000412215,3.34171,4329.0,4328.9,2.9079]
[1760000412518,1.27366,4329.5,4329.4,1.6416]
[1760000412714,2.54496,4329.5,4329.4,2.9079]
[1760000412911,3.34166,4329.5,4329.4,1.6416]
[1760000413110,2.54499,4329.2,4329.1,1.0364]
[1760000413416,0.4866,4329.5,4329.0,1.2663]
[1760000413417,2.926,4329.1,4329.0,0.8044]
[1760000413719,0.41575,4328.6,4328.5,42.0663]
[1760000414016,0.41582,4327.9,4327.8,0.8066875]
[1760000414216,0.41581,4328.0,4327.8,1.6438875]
[1760000414415,0.41581,4328.0,4327.9,1.2663]
[1760000414614,0.41581,4328.0,4327.9,2.9079]
[1760000414811,11.57474053,4330.8,4327.9,2.9079]
[1760000414812,0.4866,4330.0,4329.0,1.6858]
[1760000415016,0.00203968,4330.3,4329.2,1.2663]
[1760000415017,1.2713,4330.1,4329.2,1.2663]
[1760000415215,0.41564,4329.8,4329.4,1.2663]
[1760000415518,0.00203968,4330.3,4329.6,1.2663]
[1760000415822,0.00203968,4330.3,4330.2,1.6819]
[1760000416015,0.00203968,4330.3,4330.2,1.9139]
[1760000416221,0.1847,4331.1,4330.3,1.2663]
[1760000416422,0.60021,4331.1,4330.8,1.2663]
[1760000416614,1.80448064,4332.8,4330.5,0.4195]
[1760000416615,1.06037,4332.9,4331.0,1.7545]
[1760000416813,1.2713,4332.3,4331.6,1.2663]
[1760000417118,1.2713,4332.2,4331.8,1.2663]
[1760000417418,0.00212987,4332.3,4331.9,1.2663]
[1760000417617,0.41542,4332.1,4331.7,0.232]
[1760000417813,0.00212987,4332.3,4331.7,0.232]
[1760000418020,1.2713,4331.9,4331.8,1.2663]
[1760000418516,1.2713,4331.9,4331.7,0.232]
[1760000418517,0.41541,4332.2,4331.7,0.64745]
[1760000418716,0.41542,4332.1,4331.8,1.2663]
[1760000418912,0.00212987,4332.3,4331.8,1.68174]
[1760000419123,0.00212987,4332.3,4331.8,1.2663]
[1760000419622,0.00212987,4332.3,4332.0,1.2663]
[1760000420020,0.00212987,4332.3,4331.9,0.41543]
[1760000420215,0.00212987,4332.3,4331.8,1.2663]
[1760000420420,0.41542,4332.0,4331.8,1.2663]
[1760000420617,0.41544,4331.8,4331.6,0.00268155]
[1760000420813,1.2713,4331.7,4331.6,0.00268155]
[1760000421515,1.2713,4331.7,4331.6,1.26898155]
[1760000421714,1.68672,4332.0,4331.6,0.00268155]
[1760000421922,0.41543,4332.0,4331.7,1.2663]
[1760000422224,0.41541,4332.2,4331.6,0.65014155]
[1760000422519,0.00212987,4332.3,4331.7,1.2663]
[1760000422719,1.2713,4331.7,4331.6,0.00268155]
[1760000423513,1.7579,4332.5,4331.7,1.2663]
[1760000423720,1.68668,4332.5,4332.1,0.41541]
[1760000424024,1.68668,4332.5,4332.1,1.2663]
[1760000424226,1.2713,4332.5,4332.1,1.2663]
[1760000424526,0.41535,4332.8,4332.2,1.68171]
[1760000424927,2.17323,4333.0,4332.2,42.48171]
[1760000425223,0.4866,4333.5,4332.2,42.48171]
[1760000425224,1e-08,4332.3,4332.2,47.48171]
[1760000426417,1.2713,4333.9,4333.1,0.41532]
[1760000426724,1.2713,4333.9,4333.5,0.41528]
[1760000426725,0.41526,4333.8,4333.5,0.41528]
[1760000426926,0.41526,4333.7,4333.6,1.2663]
[1760000427320,0.00225495,4333.7,4333.6,1.2663]
[1760000430220,0.00225495,4333.7,4333.6,6.2663]
[1760000430421,0.41518,4334.6,4334.4,1.3015]
[1760000430631,1.247,4335.1,4334.4,1.71669]
[1760000430824,1.247,4335.2,4334.6,1.71667]
[1760000431026,0.41518,4334.6,4334.4,1.3015]
[1760000431221,1.247,4335.2,4334.5,0.41518]
[1760000431422,0.00289848,4335.2,4334.6,1.3015]
[1760000431626,0.41518,4334.6,4334.5,1.3015]
[1760000431827,0.41519,4334.4,4334.3,1.5335]
[1760000432828,1.247,4334.6,4334.1,40.8]
[1760000432829,1.247,4334.2,4334.1,40.8]
[1760000433029,1.247,4334.4,4333.8,0.232]
[1760000433426,1.247,4334.4,4333.8,0.64725]
[1760000433631,0.41524,4334.0,4333.9,1.3015]
[1760000434524,1.247,4334.2,4333.9,1.3015]
[1760000434723,0.41522,4334.1,4333.9,0.41524]
[1760000435028,0.41524,4334.0,4333.9,1.3015]
[1760000435626,1.739,4334.5,4333.9,1.3015]
[1760000435825,1.247,4334.5,4334.1,0.41522]
[1760000436026,0.4152,4334.4,4334.0,0.4195]
[1760000436228,1.247,4334.9,4334.2,0.41521]
[1760000436523,0.4152,4334.4,4334.3,1.3015]
[1760000436729,1.247,4334.3,4334.2,0.232]
[1760000436931,1.247,4334.3,4334.2,1.5335]
[1760000437129,0.4152,4334.4,4334.3,1.3015]
[1760000437635,0.00289848,4335.2,4335.1,1.3015]
[1760000437834,0.00289848,4335.2,4335.1,1.30428748]
[1760000440442,1.24989848,4335.2,4335.1,1.53628748]
[1760000440737,1.24989848,4335.2,4335.1,42.33628748]
[1760000441634,1.24989848,4335.2,4335.1,1.53628748]
[1760000441833,0.00289848,4335.2,4335.1,1.53628748]
[1760000442540,1.24989848,4335.2,4335.1,0.23478748]
[1760000443040,0.00289848,4335.2,4335.1,1.53628748]
[1760000443941,0.00289848,4335.2,4335.1,3.24898748]
[1760000445639,1.98949848,4335.2,4335.1,3.24898748]
[1760000445832,0.00289848,4335.2,4335.1,3.24898748]
[1760000446638,0.1004,4335.7,4335.6,3.31278]
[1760000446841,0.1004,4335.7,4335.6,3.54478]
[1760000447143,0.41502,4336.2,4336.1,2.8977]
[1760000447334,3.20666,4335.8,4335.7,1.625]
[1760000447642,0.4151,4335.4,4335.2,2.8977]
[1760000447938,0.4151,4335.4,4335.2,3.31282]
[1760000448241,0.4151,4335.4,4335.3,2.8977]
[1760000448442,1.2068,4335.7,4335.3,1.625]
[1760000448636,3.7221,4335.5,4335.4,0.8213]
[1760000448941,3.7221,4335.5,4335.4,1.625]
[1760000449139,3.2067,4335.5,4335.4,2.8977]
[1760000449539,2.4017,4335.5,4335.4,2.8977]
[1760000450429,1.62187,4335.7,4335.6,0.8213]
[1760000450631,1.62187,4335.7,4335.6,2.8977]
[1760000450840,2.40167,4335.7,4335.6,2.8977]
[1760000451041,1.9866,4335.7,4335.6,2.8977]
[1760000451442,0.41689119,4335.8,4335.7,1.2727]
[1760000451646,0.41689119,4335.8,4335.7,2.8977]
[1760000451837,2.40349119,4335.8,4335.7,2.8977]
[1760000452038,0.41689119,4335.8,4335.7,3.31277]
[1760000452334,2.40349119,4335.8,4335.7,2.8977]
[1760000452540,2.40349119,4335.8,4335.2,0.8213]
[1760000452541,3.20671,4335.3,4335.2,0.8213]
[1760000452842,0.5154,4335.5,4335.1,0.00278748]
[1760000452843,3.20672,4335.2,4335.1,0.00278748]
[1760000453034,3.20672,4335.2,4335.1,1.62778748]
[1760000453237,2.40172,4335.2,4335.1,2.90048748]
[1760000453541,0.41512,4335.2,4335.1,3.31561748]
[1760000453736,1.19492,4335.2,4335.1,2.90048748]
[1760000453940,3.20672,4335.2,4335.1,1.62778748]
[1760000454143,2.7916,4335.2,4335.1,2.04291748]
[1760000454543,3.20672,4335.2,4335.1,2.90048748]
[1760000454938,3.20672,4335.2,4335.1,1.62778748]
[1760000455141,3.20672,4335.2,4335.1,0.00278748]
[1760000455344,3.75070081,4335.2,4335.1,0.00278748]
[1760000455541,2.7916,4335.2,4335.1,0.00278748]
[1760000455844,3.20672,4335.2,4335.1,0.82408748]
[1760000458247,3.74820775,4335.2,4335.1,0.82408748]
[1760000458446,3.20672,4335.2,4335.1,1.62778748]
[1760000459048,3.20672,4335.2,4335.1,0.82408748]
[1760000459549,3.74844151,4335.2,4335.1,0.81458748]
[1760000459746,3.20672,4335.2,4335.1,1.65738748]
[1760000459945,3.20672,4335.2,4335.1,2.82668748]
[1760000460146,2.94344536,4335.2,4335.1,2.82668748]
[1760000460341,2.40172,4335.2,4335.1,2.82668748]
[1760000460545,0.41512,4335.2,4335.1,2.82668748]
[1760000461253,2.47912,4335.2,4335.1,2.82668748]
[1760000461847,3.32062,4335.2,4335.1,2.82668748]
[1760000462048,3.32062,4335.2,4335.1,0.00278748]
[1760000462444,3.32062,4335.2,4335.1,2.82668748]
[1760000462646,2.47912,4335.2,4335.1,2.82668748]
[1760000462847,3.32062,4335.2,4335.1,1.65738748]
[1760000463248,1.2467,4335.4,4335.2,1.1693]
[1760000463446,0.41511,4335.3,4335.2,3.23902]
[1760000463646,0.41511,4335.3,4335.2,2.8239]
[1760000464154,0.41511,4335.3,4335.2,3.23902]
[1760000465150,0.41509,4335.5,4335.4,1.6546]
[1760000465351,0.41508,4335.6,4335.5,3.2341]
[1760000465657,2.47908,4335.6,4335.5,2.8239]
[1760000465952,0.00183119,4335.8,4335.7,3.23897]
[1760000466150,0.00183119,4335.8,4335.7,3.47097]
[1760000466344,0.00183119,4335.8,4335.7,8.47097]
[1760000466743,0.00183119,4335.8,4335.7,49.27097]
[1760000468049,0.41498,4336.6,4336.5,2.8239]
[1760000468255,0.41498,4336.6,4336.5,3.0559]
[1760000468849,1.66167,4336.8,4336.7,0.8118]
[1760000469057,1.66390082,4336.8,4336.7,2.8239]
[1760000469257,1.7447,4338.0,4337.8,0.8118]
[1760000469557,2.086,4337.9,4337.8,2.8239]
[1760000469756,0.022,4337.9,4337.8,2.8239]
[1760000470148,0.41479,4338.7,4338.4,0.8118]
[1760000470355,0.41667726,4338.7,4338.6,2.8239]
[1760000471159,0.00188726,4338.7,4338.6,2.8239]
[1760000472056,2.90738726,4338.7,4338.6,1.6546]
[1760000472259,2.90738726,4338.7,4338.4,0.00205007]
[1760000472260,0.41479,4338.6,4338.4,0.00205007]
[1760000472552,2.47889,4337.6,4337.5,2.8239]
[1760000472746,0.41489,4337.6,4337.4,0.232]
[1760000472952,1.2467,4337.5,4337.4,0.232]
[1760000473154,1.7447,4337.5,4337.4,0.232]
[1760000473353,0.41495,4337.0,4336.8,0.232]
[1760000473654,0.41494,4337.1,4336.8,0.64696]
[1760000473853,1.2467,4337.4,4336.8,0.23366784]
[1760000474059,1.2467,4337.1,4336.8,0.00166784]
[1760000474354,0.1844,4337.2,4336.8,0.23366784]
[1760000474355,1.66165,4336.9,4336.8,0.23366784]
[1760000475260,1.66165,4336.9,4336.8,0.00166784]
[1760000475467,1.2467,4336.9,4336.8,0.00166784]
[1760000476262,1.2467,4336.9,4336.8,1.17096784]
[1760000476662,1.2467,4336.9,4336.8,0.00166784]
[1760000476967,9.26462152,4336.9,4336.8,0.00166784]
[1760000477359,1.2467,4336.9,4336.8,0.00166784]
[1760000477559,1.2467,4336.9,4336.8,1.17096784]
[1760000477759,1.2467,4336.9,4336.8,0.00166784]
[1760000478159,1.2467,4336.9,4336.8,1.17096784]
[1760000478558,0.1844,4337.2,4336.8,1.17096784]
[1760000478758,1.2467,4337.0,4336.8,0.00166784]
[1760000478965,1.2467,4336.9,4336.8,0.00166784]
[1760000480263,0.41495,4337.0,4336.8,1.17096784]
[1760000480569,0.41494,4337.1,4337.0,1.1693]
[1760000480765,0.1844,4337.2,4337.1,1.1693]
[1760000480957,1.2467,4337.1,4336.9,0.41495]
[1760000481161,1.66165,4336.9,4336.8,0.00166784]
[1760000481562,0.498,4336.5,4335.8,1.1693]
[1760000481762,0.41508,4335.6,4335.5,1.1693]
[1760000481970,1.66178,4335.6,4335.5,1.1693]
[1760000482663,1.24893774,4335.6,4335.5,1.17206692]
[1760000482862,0.00223774,4335.6,4335.5,1.58226692]
[1760000483259,0.00223774,4335.6,4335.5,0.00276692]
[1760000483260,1.24893774,4335.6,4335.5,0.00276692]
[1760000483965,4.30478717,4335.6,4335.5,0.00276692]
[1760000484560,4.30478717,4335.6,4335.4,1.1479]
[1760000484561,2.15979,4335.5,4335.4,1e-08]
[1760000484762,0.498,4334.5,4333.1,0.014]
[1760000484968,0.41524,4334.0,4333.8,1.1693]
[1760000485168,3.02119146,4334.4,4333.7,0.41526]
[1760000485469,0.498,4334.5,4333.2,40.8]
[1760000485470,0.4153,4333.3,4333.2,41.9693]
[1760000485666,1.662,4333.3,4333.2,41.97192514]
[1760000485867,1.53609,4334.0,4333.2,41.97192514]
[1760000485868,1.2467,4333.9,4333.2,41.97192514]
[1760000486165,0.4153,4333.4,4333.3,1.1693]
[1760000486469,3.04426278,4333.9,4333.3,1.1693]
[1760000486662,0.498,4335.0,4333.3,1.1693]
[1760000486663,0.41521,4334.3,4333.9,0.41523]
[1760000486862,0.498,4335.0,4333.7,0.232]
[1760000486863,1.2467,4334.9,4333.7,0.232]
[1760000487071,1.03814,4333.8,4333.2,40.80262514]
[1760000487265,1.662,4333.3,4333.2,40.80262514]
[1760000487466,1.662,4333.3,4333.2,0.00262514]
[1760000489365,1.2467,4333.3,4333.2,0.00262514]
[1760000489566,1.2374,4333.8,4333.3,1.2651]
[1760000489766,0.41521,4334.3,4333.9,0.41524]
[1760000489967,0.232,4334.8,4333.6,1.2651]
[1760000490171,0.41523,4334.1,4333.9,1.68034]
[1760000490472,1.2374,4334.4,4333.7,0.232]
[1760000490770,0.4662,4335.5,4333.7,0.232]
[1760000490771,0.41515,4334.9,4334.3,1.2651]
[1760000490960,0.41518,4334.6,4334.3,0.4152]
[1760000491164,4.17700456,4334.9,4333.8,1.2651]
[1760000491464,0.41516,4334.8,4334.4,0.41519]
[1760000491668,1.2374,4334.8,4334.5,1.2651]
[1760000491865,2.93960456,4334.9,4334.5,1.2651]
[1760000492070,0.41519,4334.5,4334.2,0.41521]
[1760000492269,1.2374,4334.8,4334.4,0.41519]
[1760000492570,1.2374,4335.4,4334.3,1.2651]
[1760000492763,0.41515,4334.9,4334.8,1.2651]
[1760000493162,1.7036,4335.0,4334.2,1.4971]
[1760000493367,0.4152,4334.4,4334.2,1.91231]
[1760000493870,1.65258,4334.6,4334.3,1.2651]
[1760000494070,1.65258,4334.6,4334.2,0.232]
[1760000494071,0.41516,4334.8,4334.6,1.2651]
[1760000494268,4.21728002,4334.9,4334.6,0.41517]
[1760000494474,0.1845,4335.1,4334.9,0.41515]
[1760000494676,0.1845,4335.1,4335.0,1.7302]
[1760000495971,1.2374,4336.6,4335.9,0.41505]
[1760000496169,1.03733,4337.2,4335.8,1.2651]
[1760000496367,3.39456873,4336.9,4336.0,1.03761]
[1760000496572,0.41495,4337.0,4336.7,1.2651]
[1760000496870,1.2374,4337.2,4336.4,1.2651]
[1760000497069,1.24019655,4337.2,4336.5,1.6426]
[1760000497273,0.41495,4337.0,4336.4,1.26806289]
[1760000497472,0.4662,4337.0,4336.4,1.26806289]
[1760000497679,1.2374,4336.5,4336.4,0.00296289]
[1760000497879,1.7036,4336.5,4336.4,0.00296289]
[1760000498370,9.65170435,4336.5,4336.4,0.00296289]
[1760000498778,0.41497,4336.8,4336.4,1.26806289]
[1760000498971,1.2374,4336.7,4336.5,1.2651]
[1760000499178,0.41499,4336.6,4336.5,1.2651]
[1760000499378,1.2374,4336.9,4336.5,1.2651]
[1760000499573,1.2374,4336.9,4336.6,1.2651]
[1760000499769,1.24019655,4337.2,4336.8,1.2651]
[1760000499971,0.41494,4337.1,4337.0,1.2651]
[1760000500179,1.2374,4336.7,4336.4,0.00296289]
[1760000500478,1.2374,4336.5,4336.4,0.23496289]
[1760000500978,0.41497,4336.8,4336.4,0.64996289]
[1760000501281,0.41499,4336.6,4336.5,1.2651]
[1760000501481,1.2374,4336.9,4336.5,0.41499]
[1760000501781,1.65238,4336.7,4336.6,1.2651]
[1760000502082,0.41497,4336.8,4336.4,1.26806289]
[1760000502276,1.2374,4337.0,4336.4,0.00296289]
[1760000502477,1.2374,4337.0,4336.6,0.41498]
[1760000502478,0.41496,4336.9,4336.6,0.41498]
[1760000502671,1.2374,4337.0,4336.7,1.2651]
[1760000502880,0.41497,4336.8,4336.7,1.2651]
[1760000503274,0.41495,4337.0,4336.7,1.2651]
[1760000503473,0.00279655,4337.2,4336.7,1.2651]
[1760000503670,0.00279655,4337.2,4337.1,1.2651]
[1760000503875,1.24019655,4337.2,4337.1,1.2651]
[1760000504078,1.1338,4337.1,4336.8,42.42796]
[1760000504282,0.41495,4337.0,4336.8,42.013]
[1760000504576,0.00279655,4337.2,4336.9,1.62795]
[1760000504878,0.00279655,4337.2,4336.8,40.8]
[1760000504879,0.00279655,4337.2,4336.8,42.013]
[1760000505080,1.1338,4337.1,4336.8,40.8]
[1760000505378,1.1338,4337.1,4336.9,1.213]
[1760000505577,0.00279655,4337.2,4336.8,40.8]
[1760000505782,0.41772655,4337.2,4337.1,1.213]
[1760000505980,1.54875,4336.9,4336.8,40.8]
[1760000506184,0.41498,4336.6,4336.5,0.232]
[1760000506385,1.54878,4336.6,4336.5,0.232]
[1760000506582,1.54878,4336.6,4336.5,41.032]
[1760000506986,0.41498,4336.6,4336.4,0.00296289]
[1760000507179,0.41498,4336.7,4336.4,0.41796289]
[1760000507379,1.6177,4337.0,4336.4,41.21796289]
[1760000507580,0.41499,4336.6,4336.4,40.80296289]
[1760000507781,1.1338,4336.5,4336.4,1.21596289]